lending/lending_fUSD_20251218
["ID","MTS","AMOUNT","RATE_DAILY","PERIOD"]
[399063365,1766095041930,-1472.56,0.00016438,2]
[399063366,1766095041940,-500.0,0.00016444,2]
[399063367,1766095041951,-544.28156038,0.00016444,2]
[399063368,1766095041961,-500.0,0.00016444,2]
[399063369,1766095041971,-544.28156038,0.00016444,2]
[399063370,1766095041980,-544.28156038,0.00016444,2]
[399063371,1766095041989,-500.0,0.00016444,2]
[399063372,1766095041999,-500.0,0.00016444,2]
[399063373,1766095042009,-544.28156038,0.00016444,2]
[399063374,1766095042018,-500.0,0.00016444,2]
[399063375,1766095042027,-254.87844171,0.00016444,2]
[399063376,1766095043071,-289.40311867,0.00016444,2]
[399063377,1766095043108,-500.0,0.00016444,2]
[399063378,1766095043163,-544.28156038,0.00016444,2]
[399063379,1766095043202,-500.0,0.00016444,2]
[399063380,1766095043238,-272.28305013,0.00016444,2]
[399063381,1766095043274,-500.0,0.00016444,2]
[399063382,1766095043314,-514.76052013,0.00016444,2]
[399063383,1766095043353,-514.76052013,0.00016444,2]
[399063384,1766095043385,-500.0,0.00016444,2]
[399063385,1766095043417,-500.0,0.00016444,2]
[399063386,1766095043450,-216.76929002,0.00016444,2]
[399063387,1766095043538,-295.49388108,0.00016444,2]
[399063388,1766095044570,-184.73444802,0.00016445,2]
[399063389,1766095046204,-317.29061087,0.00016445,2]
[399063391,1766095049209,-236.85212216,0.00016445,2]
[399063393,1766095050213,-239.94359756,0.00016445,2]
[399063396,1766095051298,200.6751352,0.00016345,2]
[399063400,1766095052286,-308.00930881,0.00016445,2]
[399063404,1766095056492,-158.29890069,0.00016445,2]
[399063405,1766095057779,398.74554139,0.00016345,2]
[399063406,1766095058189,-307.40563422,0.00016445,2]
[399063407,1766095060659,-354.78594011,0.00016445,2]
[399063408,1766095062734,-317.190708,0.00016445,2]
[399063409,1766095067178,-255.15986227,0.00016445,2]
[399063410,1766095068851,-300.0,0.00016445,2]
[399063411,1766095072356,-392.54325046,0.00016445,2]
[399063412,1766095074540,-452.51228467,0.00016445,2]
[399063413,1766095076244,-214.42464372,0.00016445,2]
[399063414,1766095077786,-215.0738,0.00016445,2]
[399063415,1766095079035,755.36061602,0.00016444,2]
[399063416,1766095079355,755.36061602,0.00016444,2]
[399063417,1766095079655,755.36061602,0.00016444,2]
[399063418,1766095079955,755.36061602,0.00016444,2]
[399063419,1766095080252,755.36061602,0.00016444,2]
[399063420,1766095080331,-213.69001737,0.00016445,2]
[399063421,1766095080712,755.36061602,0.00016444,2]
[399063422,1766095080754,755.36061602,0.00016444,2]
[399063423,1766095080789,755.36061602,0.00016444,2]
[399063424,1766095080822,755.36061602,0.00016444,2]
[399063425,1766095080858,755.36061602,0.00016444,2]
[399063426,1766095080892,755.36061602,0.00016444,2]
[399063427,1766095080930,755.36061602,0.00016444,2]
[399063428,1766095080966,536.93706637,0.00016444,2]
[399063429,1766095081000,218.42354965,0.00016444,2]
[399063430,1766095081037,755.36061602,0.00016444,2]
[399063431,1766095081071,755.36061602,0.00016444,2]
[399063432,1766095081105,755.36061602,0.00016444,2]
[399063433,1766095081136,755.36061602,0.00016444,2]
[399063434,1766095081168,755.36061602,0.00016444,2]
[399063435,1766095081200,755.36061602,0.00016444,2]
[399063436,1766095081235,755.36061602,0.00016444,2]
[399063437,1766095081269,755.36061602,0.00016444,2]
[399063438,1766095081301,755.36061602,0.00016444,2]
[399063439,1766095081332,755.36061602,0.00016444,2]
[399063440,1766095081363,755.36061602,0.00016444,2]
[399063441,1766095081395,755.36061602,0.00016444,2]
[399063442,1766095081431,717.25905811,0.00016444,2]
[399063443,1766095081458,38.10155791,0.00016444,2]
[399063444,1766095081492,755.36061602,0.00016444,2]
[399063445,1766095081524,755.36061602,0.00016444,2]
[399063446,1766095081556,755.36061602,0.00016444,2]
[399063447,1766095081588,755.36061602,0.00016444,2]
[399063448,1766095081624,755.36061602,0.00016444,2]
[399063449,1766095081656,755.36061602,0.00016444,2]
[399063450,1766095081688,755.36061602,0.00016444,2]
[399063451,1766095081724,755.36061602,0.00016444,2]
[399063452,1766095081757,755.36061602,0.00016444,2]
[399063453,1766095081789,755.36061602,0.00016444,2]
[399063454,1766095081820,755.36061602,0.00016444,2]
[399063455,1766095081851,755.36061602,0.00016444,2]
[399063456,1766095081882,755.36061602,0.00016444,2]
[399063457,1766095081915,142.22043383,0.00016444,2]
[399063458,1766095081941,613.14018219,0.00016444,2]
[399063459,1766095081975,755.36061602,0.00016444,2]
[399063460,1766095082008,755.36061602,0.00016444,2]
[399063461,1766095082042,755.36061602,0.00016444,2]
[399063462,1766095082074,755.36061602,0.00016444,2]
[399063463,1766095082107,755.36061602,0.00016444,2]
[399063464,1766095082140,755.36061602,0.00016444,2]
[399063465,1766095082173,755.36061602,0.00016444,2]
[399063466,1766095082204,755.36061602,0.00016444,2]
[399063467,1766095082240,755.36061602,0.00016444,2]
[399063468,1766095082276,755.36061602,0.00016444,2]
[399063469,1766095082318,755.36061602,0.00016444,2]
[399063470,1766095083610,755.36061602,0.00016444,2]
[399063471,1766095083645,322.54242557,0.00016444,2]
[399063472,1766095083673,432.81819045,0.00016444,2]
[399063473,1766095083709,755.36061602,0.00016444,2]
[399063474,1766095083744,755.36061602,0.00016444,2]
[399063475,1766095083779,755.36061602,0.00016444,2]
[399063476,1766095083815,755.36061602,0.00016444,2]
[399063477,1766095083849,755.36061602,0.00016444,2]
[399063478,1766095083888,755.36061602,0.00016444,2]
[399063479,1766095083926,755.36061602,0.00016444,2]
[399063480,1766095083959,755.36061602,0.00016444,2]
[399063481,1766095083991,755.36061602,0.00016444,2]
[399063482,1766095084023,755.36061602,0.00016444,2]
[399063483,1766095084075,755.36061602,0.00016444,2]
[399063484,1766095084229,1200.0,0.00016444,2]
[399063485,1766095086960,-300.00000017,0.00016445,2]
[399063487,1766095089017,-191.88503012,0.00016445,2]
[399063488,1766095089554,58.22503333,0.00016444,2]
[399063489,1766095089585,441.77496667,0.00016444,2]
[399063490,1766095089630,500.0,0.00016444,2]
[399063491,1766095089673,500.0,0.00016444,2]
[399063492,1766095089720,500.0,0.00016444,2]
[399063493,1766095089785,500.0,0.00016444,2]
[399063494,1766095089827,500.0,0.00016444,2]
[399063496,1766095089879,500.0,0.00016444,2]
[399063497,1766095089927,193.97462438,0.00016444,2]
[399063499,1766095091995,-195.0,0.00016445,2]
[399063500,1766095093491,-175.83211768,0.00016445,2]
[399063501,1766095095357,-181.16415193,0.00016445,2]
[399063502,1766095097035,-371.21201474,0.00016445,2]
[399063503,1766095100708,-398.64121908,0.00016445,2]
[399063504,1766095102280,-350.03487197,0.00016445,2]
[399063505,1766095102631,851.64414663,0.00016444,2]
[399063506,1766095102986,851.64414663,0.00016444,2]
[399063507,1766095103441,851.64414663,0.00016444,2]
[399063508,1766095104371,-226.11441705,0.00016445,2]
[399063509,1766095107041,-188.06036247,0.00016445,2]
[399063510,1766095108395,-268.98788201,0.00016445,2]
[399063511,1766095108629,500.0,0.00016444,2]
[399063512,1766095108678,544.28156038,0.00016444,2]
[399063513,1766095108759,851.64414663,0.00016444,2]
[399063514,1766095110988,-244.32582589,0.00016445,2]
[399063515,1766095113749,-407.41967081,0.00016445,2]
[399063523,1766095124401,1913.40226205,0.00016345,2]
[399063524,1766095124428,6273.61972051,0.00016345,2]
[399063525,1766095127279,2500.0,0.00016345,2]
[399063526,1766095127780,183.31760521,0.00016444,5]
[399063527,1766095142093,544.28156038,0.00016444,2]
[399063528,1766095142129,498.7911139,0.00016444,2]
[399063529,1766095142158,1.2088861,0.00016444,2]
[399063530,1766095142199,300.0,0.00016444,2]
[399063531,1766095164351,441.00546192,0.00016345,2]
[399063532,1766095171269,500.0,0.00016444,2]
[399063533,1766095171315,544.28156038,0.00016444,2]
[399063534,1766095184862,8213.5140916,0.00016,2]
[399063535,1766095184887,10000.01,0.00016,2]
[399063536,1766095184910,5072.68060629,0.00016,2]
[399063537,1766095193848,200.6751352,0.00016345,2]
[399063538,1766095201222,300.0,0.00016444,2]
[399063539,1766095201258,300.0,0.00016444,2]
[399063540,1766095201424,1200.0,0.00016444,2]
[399063541,1766095203411,500.0,0.00016444,2]
[399063542,1766095203669,544.28156038,0.00016444,2]
[399063543,1766095217073,1650.9,0.00016435,2]
[399063544,1766095217299,1650.9,0.00016435,2]
[399063545,1766095218721,164.6,0.0001644,2]
[399063546,1766095229939,1375.53352858,0.00016444,2]
[399063547,1766095229974,1375.53352858,0.00016444,2]
[399063548,1766095230019,938.26138246,0.00016444,2]
[399063549,1766095230672,437.27214612,0.00016444,2]
[399063550,1766095231836,1375.53352858,0.00016444,2]
[399063551,1766095231879,1375.53352858,0.00016444,2]
[399063552,1766095231911,1375.53352858,0.00016444,2]
[399063553,1766095231958,1375.53352858,0.00016444,2]
[399063554,1766095231994,1375.53352858,0.00016444,2]
[399063555,1766095232029,1375.53352858,0.00016444,2]
[399063556,1766095232066,1309.5366824,0.00016444,2]
[399063557,1766095232093,65.99684618,0.00016444,2]
[399063558,1766095232128,1375.53352858,0.00016444,2]
[399063559,1766095232165,1375.53352858,0.00016444,2]
[399063560,1766095232204,1375.53352858,0.00016444,2]
[399063561,1766095232240,1375.53352858,0.00016444,2]
[399063562,1766095232272,1375.53352858,0.00016444,2]
[399063563,1766095232317,1375.53352858,0.00016444,2]
[399063564,1766095232349,1375.53352858,0.00016444,2]
[399063565,1766095232380,305.27845376,0.00016444,2]
[399063566,1766095232405,1070.25507482,0.00016444,2]
[399063567,1766095232440,1375.53352858,0.00016444,2]
[399063568,1766095232475,1375.53352858,0.00016444,2]
[399063569,1766095232510,1375.53352858,0.00016444,2]
[399063570,1766095232543,1375.53352858,0.00016444,2]
[399063571,1766095232589,1375.53352858,0.00016444,2]
[399063572,1766095232622,1375.53352858,0.00016444,2]
[399063573,1766095232663,676.5537537,0.00016444,2]
[399063574,1766095243033,-698.97977488,0.00016444,2]
[399063575,1766095243064,-1375.53352858,0.00016444,2]
[399063576,1766095243096,-1375.53352858,0.00016444,2]
[399063577,1766095243128,-1375.53352858,0.00016444,2]
[399063578,1766095243210,-1375.53352858,0.00016444,2]
[399063579,1766095243243,-1375.53352858,0.00016444,2]
[399063580,1766095243274,-1375.53352858,0.00016444,2]
[399063581,1766095243307,-371.27529994,0.00016444,2]
[399063583,1766095250261,589.31,0.00015869,2]
[399063584,1766095250559,-321.83214008,0.00016444,2]
[399063585,1766095252721,-280.91738074,0.00016444,2]
[399063586,1766095257168,-252.41381597,0.00016444,2]
[399063587,1766095258643,-149.09489185,0.00016444,2]
[399063588,1766095258670,-50.38958371,0.00016444,2]
[399063589,1766095262015,-185.35041865,0.00016443,2]
[399063590,1766095266261,-114.64958135,0.00016443,2]
[399063591,1766095266288,-323.03550234,0.00016444,2]
[399063592,1766095270584,-168.42977547,0.00016444,2]
[399063595,1766095272090,-286.63595321,0.00016444,2]
[399063596,1766095273592,-372.31668531,0.00016444,2]
[399063597,1766095280104,-173.52947433,0.00016345,2]
[399063598,1766095283000,-300.0,0.00016345,2]
[399063599,1766095284679,-212.76904125,0.00016345,2]
[399063600,1766095288812,-189.05239858,0.00016345,2]
[399063601,1766095292198,-166.66,0.00016317,2]
[399063602,1766095292223,-78.31466669,0.00016345,2]
[399063604,1766095294899,-347.10463053,0.00016345,2]
[399063605,1766095297810,-317.86243822,0.00016345,2]
[399063606,1766095300909,-624.48,0.00016345,2]
[399063607,1766095307149,-256.8873504,0.00016345,2]
[399063608,1766095307177,-174.72602854,0.00016444,2]
[399063609,1766095307206,-1105.13662106,0.00016444,2]
[399063610,1766095311509,-184.06924501,0.00016444,2]
[399063611,1766095311639,683.53,0.0001585,2]
[399063612,1766095313046,-86.32766251,0.00016444,2]
[399063613,1766095313074,-263.9757035,0.00016444,2]
[399063614,1766095316459,-232.29586124,0.00016444,2]
[399063617,1766095318574,-215.73316386,0.00016444,2]
[399063618,1766095320679,-300.50791959,0.00016444,2]
[399063619,1766095322695,-300.0,0.00016444,2]
[399063620,1766095324091,-63.02088039,0.00016444,2]
[399063621,1766095324126,-1375.53352858,0.00016444,2]
[399063622,1766095324162,-1375.53352858,0.00016444,2]
[399063623,1766095324195,-1375.53352858,0.00016444,2]
[399063624,1766095324227,-245.23353916,0.00016444,2]
[399063625,1766095324352,-338.11606932,0.00016444,2]
[399063626,1766095326186,-204.91082782,0.00016444,2]
[399063627,1766095326873,-587.27309228,0.00016444,2]
[399063628,1766095326935,-1375.53352858,0.00016444,2]
[399063629,1766095326968,-1375.53352858,0.00016444,2]
[399063630,1766095327000,-1375.53352858,0.00016444,2]
[399063631,1766095329495,-321.51947135,0.00016444,2]
[399063632,1766095332150,-392.09730787,0.00016444,2]
[399063633,1766095335381,-661.91674936,0.00016444,2]
[399063634,1766095335413,-1375.53352858,0.00016444,2]
[399063635,1766095335447,-1375.53352858,0.00016444,2]
[399063636,1766095335480,-1375.53352858,0.00016444,2]
[399063637,1766095336307,-1375.53352858,0.00016444,2]
[399063638,1766095336342,-1375.53352858,0.00016444,2]
[399063639,1766095336375,-1375.53352858,0.00016444,2]
[399063640,1766095336407,-371.27529994,0.00016444,2]
[399063641,1766095336498,233560.51652,0.00016,2]
[399063642,1766095336559,-900.67512233,0.00016444,2]
[399063643,1766095336785,-103.58310631,0.00016444,2]
[399063644,1766095336819,-1375.53352858,0.00016444,2]
[399063645,1766095336852,-1375.53352858,0.00016444,2]
[399063646,1766095336886,-1375.53352858,0.00016444,2]
[399063647,1766095336920,-164.10908732,0.00016444,2]
[399063648,1766095337133,-1211.42444126,0.00016444,2]
[399063649,1766095337167,-1375.53352858,0.00016444,2]
[399063650,1766095337199,-1375.53352858,0.00016444,2]
[399063651,1766095337232,-699.49347458,0.00016444,2]
[399063652,1766095337615,-676.040054,0.00016444,2]
[399063653,1766095337650,-500.0,0.00016444,2]
[399063654,1766095337682,-2475.96035145,0.00016444,2]
[399063655,1766095337717,-500.0,0.00016444,2]
[399063656,1766095337820,-2475.96035145,0.00016444,2]
[399063657,1766095337853,-2475.96035145,0.00016444,2]
[399063658,1766095337969,-339.85340434,0.00016444,2]
[399063659,1766095338003,-2475.96035145,0.00016444,2]
[399063660,1766095338037,-1892.42213697,0.00016444,2]
[399063661,1766095338085,-583.53821448,0.00016444,2]
[399063662,1766095338118,-2475.96035145,0.00016444,2]
[399063663,1766095338152,-1405.05251669,0.00016444,2]
[399063664,1766095338810,-248.07545574,0.00016444,2]
[399063665,1766095339202,-822.83237902,0.00016444,2]
[399063666,1766095339238,-2475.96035145,0.00016444,2]
[399063667,1766095339272,-926.46418761,0.00016444,2]
[399063668,1766095339716,-1549.49616384,0.00016444,2]
[399063669,1766095339751,-2475.96035145,0.00016444,2]
[399063670,1766095339812,-2475.96035145,0.00016444,2]
[399063671,1766095339847,-2475.96035145,0.00016444,2]
[399063672,1766095339896,-2475.96035145,0.00016444,2]
[399063673,1766095339932,-2475.96035145,0.00016444,2]
[399063675,1766095341629,-154.83865845,0.00016444,2]
[399063676,1766095342457,-2321.121693,0.00016444,2]
[399063677,1766095342490,-2475.96035145,0.00016444,2]
[399063678,1766095342682,-500.0,0.00016444,2]
[399063679,1766095342719,-500.0,0.00016444,2]
[399063680,1766095342754,-214.00111045,0.00016444,2]
[399063681,1766095342791,-500.0,0.00016444,2]
[399063682,1766095342826,-500.0,0.00016444,2]
[399063683,1766095342867,-500.0,0.00016444,2]
[399063684,1766095342905,-500.0,0.00016444,2]
[399063685,1766095342944,-544.28156038,0.00016444,2]
[399063686,1766095342981,-500.0,0.00016444,2]
[399063687,1766095343017,-544.28156038,0.00016444,2]
[399063688,1766095343700,-500.0,0.00016444,2]
[399063689,1766095343740,-544.28156038,0.00016444,2]
[399063690,1766095343774,-250.0,0.00016444,2]
[399063691,1766095343812,-300.0,0.00016444,2]
[399063692,1766095346889,-443.64601253,0.00016345,2]
[399063693,1766095346929,-315.56447045,0.00016444,2]
[399063694,1766095347017,-4799.37001863,0.00016345,2]
[399063695,1766095347061,-401.26996274,0.00016345,2]
[399063696,1766095349978,-4491.25765264,0.00016444,2]
[399063698,1766095353790,-300.0,0.00016444,2]
[399063699,1766095358117,-163.73095825,0.00016444,2]
[399063700,1766095359586,-194.85621072,0.00016444,2]
[399063701,1766095359896,-10000.01,0.00016444,2]
[399063702,1766095364539,-421.96431454,0.00016444,2]
[399063703,1766095369078,-571.27416438,0.00016444,2]
[399063704,1766095370718,-244.35470798,0.00016444,2]
[399063705,1766095416656,-195.0,0.00016344,2]
[399063729,1766095508154,-1401.1804,0.00016344,2]
[399063730,1766095508187,-2500.0,0.00016345,2]
[399063731,1766095508221,-168.15464454,0.00016345,2]
[399063732,1766095508259,-661.33991092,0.00016434,2]
[399063733,1766095508362,-538.66008908,0.00016434,2]
[399063743,1766095514199,-300.0,0.00016434,2]
[399063744,1766095514249,-9400.01,0.00016435,2]
[399063748,1766095521790,367.05,0.00015699,2]
[399063752,1766095533723,-2029.16337923,0.00016344,2]
[399063753,1766095533765,-5574.63324154,0.00016344,2]
[399063755,1766095538805,150.0,0.00015682,2]
[399063756,1766095539602,-367.05,0.00016344,2]
[399063757,1766095539636,-4391.9367667,0.00016435,2]
[399063758,1766095539696,-482.0364666,0.00016436,2]
[399063763,1766095542975,-3772.7510754,0.00016436,2]
[399063764,1766095543008,-352.0,0.00016443,2]
[399063765,1766095543042,-300.0,0.00016444,2]
[399063766,1766095543075,-500.0,0.00016444,2]
[399063767,1766095543191,-150.5078492,0.00016444,2]
[399063774,1766095567165,-193.49275747,0.00016438,2]
[399063775,1766095569281,-166.66,0.00016438,2]
[399063776,1766095571320,-179.04427503,0.00016345,2]
[399063777,1766095575149,-230.88441276,0.00016345,2]
[399063778,1766095576484,-184.66639574,0.00016345,2]
[399063779,1766095581313,-230.44656256,0.00016345,2]
[399063780,1766095584648,-342.72675548,0.00016345,2]
[399063781,1766095586265,-249.44761397,0.00016345,2]
[399063782,1766095588870,-165.18077783,0.00016345,2]
[399063783,1766095591125,-300.0,0.00016345,2]
[399063784,1766095594453,-521.43,0.00016345,2]
[399063785,1766095597278,3871.94,0.00015806,2]
[399063786,1766095597614,-96.17320663,0.00016345,2]
[399063787,1766095598252,-81.85316395,0.00016434,2]
[399063788,1766095599461,-261.31862545,0.00016434,2]
[399063789,1766095602113,-194.31109753,0.00016434,2]
[399063790,1766095605755,-35.69043111,0.00016434,2]
[399063791,1766095605780,-209.02931873,0.00016438,2]
[399063792,1766095608182,-181.96887691,0.00016438,2]
[399063793,1766095610078,-48.84904689,0.00016438,2]
[399063794,1766095610107,-500.0,0.00016443,2]
[399063795,1766095610135,-500.0,0.00016443,2]
[399063796,1766095610163,-224.677516,0.00016443,2]
[399063797,1766095610195,-500.0,0.00016443,2]
[399063798,1766095610226,-500.0,0.00016443,2]
[399063799,1766095610257,-500.0,0.00016443,2]
[399063800,1766095610291,-500.0,0.00016443,2]
[399063801,1766095610322,-500.0,0.00016443,2]
[399063802,1766095610354,-500.0,0.00016443,2]
[399063803,1766095610776,-500.0,0.00016443,2]
[399063804,1766095610992,-500.0,0.00016443,2]
[399063805,1766095611025,-500.0,0.00016443,2]
[399063806,1766095611060,-294.75365395,0.00016443,2]
[399063807,1766095611092,-500.0,0.00016443,2]
[399063808,1766095611120,-500.0,0.00016443,2]
[399063809,1766095611155,-500.0,0.00016443,2]
[399063810,1766095611185,-250.0,0.00016443,2]
[399063811,1766095611216,-500.0,0.00016443,2]
[399063812,1766095611251,-500.0,0.00016443,2]
[399063813,1766095611283,-500.0,0.00016443,2]
[399063814,1766095611315,-410.5026921,0.00016443,2]
[399063815,1766095611405,-89.4973079,0.00016443,2]
[399063816,1766095611439,-500.0,0.00016443,2]
[399063817,1766095611470,-500.0,0.00016443,2]
[399063818,1766095611501,-500.0,0.00016443,2]
[399063819,1766095611532,-500.0,0.00016443,2]
[399063820,1766095611566,-500.0,0.00016443,2]
[399063821,1766095611597,-500.0,0.00016443,2]
[399063822,1766095611627,-500.0,0.00016443,2]
[399063823,1766095611659,-500.0,0.00016443,2]
[399063824,1766095611692,-500.0,0.00016443,2]
[399063825,1766095611726,-321.0153842,0.00016443,2]
[399063826,1766095611760,-178.9846158,0.00016443,2]
[399063827,1766095611785,-32.55227615,0.00016443,2]
[399063828,1766095613124,-508.0006,0.00016344,2]
[399063829,1766095613162,-467.44772385,0.00016443,2]
[399063830,1766095613197,-500.0,0.00016443,2]
[399063831,1766095613234,-500.0,0.00016443,2]
[399063832,1766095613268,-500.0,0.00016443,2]
[399063833,1766095613303,-500.0,0.00016443,2]
[399063834,1766095613336,-500.0,0.00016443,2]
[399063835,1766095613371,-500.0,0.00016443,2]
[399063836,1766095613408,-500.0,0.00016443,2]
[399063837,1766095613446,-500.0,0.00016443,2]
[399063838,1766095613570,-500.0,0.00016443,2]
[399063839,1766095613609,-500.0,0.00016443,2]
[399063840,1766095613644,-500.0,0.00016443,2]
[399063841,1766095613684,-500.0,0.00016443,2]
[399063842,1766095613719,-500.0,0.00016443,2]
[399063843,1766095613753,-500.0,0.00016443,2]
[399063844,1766095613787,-500.0,0.00016443,2]
[399063845,1766095613821,-500.0,0.00016443,2]
[399063846,1766095613861,-500.0,0.00016443,2]
[399063847,1766095613895,-500.0,0.00016443,2]
[399063848,1766095614140,-337.3378388,0.00016443,2]
[399063849,1766095616062,-162.6621612,0.00016443,2]
[399063850,1766095616101,-500.0,0.00016443,2]
[399063851,1766095616137,-500.0,0.00016443,2]
[399063852,1766095616173,-500.0,0.00016443,2]
[399063853,1766095616208,-500.0,0.00016443,2]
[399063854,1766095616243,-500.0,0.00016443,2]
[399063855,1766095616277,-500.0,0.00016443,2]
[399063856,1766095616311,-500.0,0.00016443,2]
[399063857,1766095616349,-500.0,0.00016443,2]
[399063858,1766095616391,-500.0,0.00016443,2]
[399063859,1766095616429,-257.62890024,0.00016443,2]
[399063860,1766095616618,-500.0,0.00016443,2]
[399063861,1766095616654,-500.0,0.00016443,2]
[399063862,1766095616690,-500.0,0.00016443,2]
[399063863,1766095616726,-500.0,0.00016443,2]
[399063864,1766095616762,-600.0,0.00016443,2]
[399063865,1766095616796,-500.0,0.00016443,2]
[399063866,1766095616838,-500.0,0.00016443,2]
[399063867,1766095616875,-500.0,0.00016443,2]
[399063868,1766095616910,-500.0,0.00016443,2]
[399063869,1766095616949,-300.01,0.00016443,2]
[399063870,1766095616985,-199.99,0.00016443,2]
[399063871,1766095617015,-100.01,0.00016443,2]
[399063872,1766095619780,-220.15829366,0.00016443,2]
[399063873,1766095622022,-151.12526925,0.00016443,2]
[399063874,1766095634256,292.0,0.00016259,2]
[399063875,1766095640922,-404.7207727,0.00016344,2]
[399063876,1766095643033,-150.18491713,0.00016344,2]
[399063877,1766095643063,-79.54323836,0.00016385,2]
[399063878,1766095644525,-220.35815899,0.00016385,2]
[399063879,1766095644552,-33.62901792,0.00016426,2]
[399063880,1766095647734,-206.69519089,0.00016426,2]
[399063881,1766095650156,-51.67579119,0.00016426,2]
[399063882,1766095650181,-200.0,0.00016435,2]
[399063883,1766095650207,-72.81642056,0.00016435,2]
[399063884,1766095652712,-127.18357944,0.00016435,2]
[399063885,1766095652738,-283.62168073,0.00016435,2]
[399063886,1766095656926,-229.73329217,0.00016345,2]
[399063887,1766095658519,-197.7872548,0.00016345,2]
[399063889,1766095662358,-276.05123905,0.00016345,2]
[399063890,1766095666202,-177.24978837,0.00016345,2]
[399063891,1766095667608,-6998.60230349,0.00016345,2]
[399063892,1766095667786,-10000.01,0.00016345,2]
[399063893,1766095667991,-10000.01,0.00016345,2]
[399063894,1766095668484,-170.96708338,0.00016345,2]
[399063895,1766095669970,-271.02534256,0.00016345,2]
[399063896,1766095673931,-10000.01,0.00016344,2]
[399063897,1766095674554,-10000.01,0.00016344,2]
[399063898,1766095674679,-10000.01,0.00016344,2]
[399063899,1766095675527,-155.57359554,0.00016344,2]
[399063900,1766095678380,-174.47450186,0.00016344,2]
[399063901,1766095678445,-10000.01,0.00016344,2]
[399063902,1766095678462,-10000.01,0.00016344,2]
[399063903,1766095678478,-10000.01,0.00016344,2]
[399063904,1766095678495,-10000.01,0.00016344,2]
[399063905,1766095679542,-527.78242833,0.00016344,2]
[399063906,1766095679770,-10000.01,0.00016344,2]
[399063907,1766095680030,-10000.01,0.00016344,2]
[399063908,1766095680142,-10000.01,0.00016344,2]
[399063909,1766095681659,-433.90234373,0.00016343,5]
[399063910,1766095682719,-760.88460244,0.00016343,5]
[399063911,1766095682752,-1194.78694617,0.00016343,5]
[399063912,1766095682810,-6088.66690278,0.00016344,2]
[399063913,1766095682839,-10000.01,0.00016344,2]
[399063914,1766095682967,-10000.01,0.00016344,2]
[399063915,1766095683105,-10000.01,0.00016344,2]
[399063916,1766095684912,-300.0,0.00016344,2]
[399063917,1766095687539,-184.4491915,0.00016344,2]
[399063918,1766095690235,-184.61978883,0.00016344,2]
[399063919,1766095693550,1692.76,0.00015759,2]
[399063920,1766095693762,-227.68586486,0.00016344,2]
[399063921,1766095695649,-152.41552863,0.00016344,2]
[399063922,1766095697161,-613.510581,0.00016344,2]
[399063923,1766095698696,-500.0,0.00016344,2]
[399063924,1766095702474,-350.59965356,0.00016344,2]
[399063925,1766095704053,-200.6751352,0.00016344,2]
[399063926,1766095705542,-212.22072072,0.00016344,2]
[399063927,1766095707010,-245.55,0.00016344,2]
[399063928,1766095708652,-300.0,0.00016344,2]
[399063929,1766095710127,-186.65263837,0.00016344,2]
[399063930,1766095714015,-216.82349512,0.00016343,2]
[399063931,1766095716847,-151.67773019,0.00016343,2]
[399063932,1766095719004,-131.49877469,0.00016343,2]
[399063933,1766095719034,-186.99705918,0.00016344,2]
[399063934,1766095722334,-158.87416982,0.00016343,2]
[399063935,1766095725001,-169.11321539,0.00016343,2]
[399063936,1766095727811,-172.01261479,0.00016343,2]
[399063937,1766095727838,-59.09399096,0.00016343,2]
[399063938,1766095729413,-285.1038663,0.00016343,2]
[399063939,1766095733205,-155.80214274,0.00016343,2]
[399063940,1766095733232,-132.52555801,0.00016343,2]
[399063941,1766095737055,-244.68722289,0.00016343,2]
[399063942,1766095740170,-122.7872191,0.00016343,2]